bitfinex/quotes_ETHUSD_20220201
["timestamp","ask_amount","ask_price","bid_price","bid_amount"]
[1643733995244,1.51119526,2789.4,2788.8,21.97628]
[1643733995444,0.1892,2789.7,2788.8,21.97628]
[1643733995647,1.5111485,2789.6,2788.8,21.97628]
[1643733995847,0.01,2789.5,2788.8,21.97628]
[1643733996047,0.01,2789.5,2788.8,22.8725809]
[1643733996246,0.1792,2789.7,2788.9,21.85224609]
[1643733996247,0.39764909,2789.6,2788.9,21.85224609]
[1643733996448,0.1892,2789.7,2788.9,0.77224609]
[1643733996691,1.51112144,2789.6,2788.9,1.07224609]
[1643733996893,0.01,2789.5,2788.9,1.07224609]
[1643733997294,0.1892,2789.7,2788.9,2.07224609]
[1643733997492,1.51113973,2789.6,2788.9,1.07224609]
[1643733997693,0.40106608,2789.5,2788.9,2.07224609]
[1643733997893,0.40106608,2789.5,2788.8,2.7925809]
[1643733997894,1.51125817,2789.4,2788.8,0.3]
[1643733998094,1.69045817,2789.4,2788.8,0.3]
[1643733998296,1.51125817,2789.3,2788.8,1.0]
[1643733999098,1.51125817,2789.3,2788.7,2.0925206]
[1643733999300,1.51125817,2789.3,2788.7,1.7925206]
[1643734000545,2.8321943,2789.4,2788.7,1.7925206]
[1643734000744,1.51125834,2789.3,2788.6,0.01519997]
[1643734000943,0.1792,2789.2,2788.6,0.01519997]
[1643734001147,1.51125834,2789.1,2788.6,0.01519997]
[1643734001642,1.51127589,2789.0,2788.6,0.01519997]
[1643734001844,1.51127589,2789.3,2788.6,0.01519997]
[1643734002043,0.65106608,2789.5,2788.6,0.01519997]
[1643734002044,1.69038644,2789.2,2788.6,0.01519997]
[1643734002243,0.1792,2789.4,2788.6,0.01519997]
[1643734002444,1.51115532,2789.3,2788.6,0.01519997]
[1643734002646,1.51115532,2789.3,2788.7,0.73230324]
[1643734002946,0.1792,2789.4,2788.7,2.52483294]
[1643734003143,0.1792,2789.4,2788.8,0.0063433]
[1643734003544,0.1792,2789.4,2788.7,2.82483294]
[1643734003746,1.51106333,2789.3,2788.8,1.0]
[1643734004389,0.42015313,2789.2,2788.8,1.0]
[1643734004792,1.51115008,2789.1,2788.7,3.0925297]
[1643734004989,0.1792,2789.4,2788.7,2.0925297]
[1643734005194,1.51116102,2789.3,2788.7,2.0925297]
[1643734005391,1.51116102,2789.2,2788.7,2.0925297]
[1643734005591,1.51116102,2789.1,2788.7,2.0925297]
[1643734005792,0.34904016,2789.1,2788.7,2.0925297]
[1643734006191,0.1792,2789.5,2788.7,2.0925297]
[1643734006395,1.51117528,2789.4,2788.7,2.0925297]
[1643734007194,1.91145379,2789.4,2788.7,2.0925297]
[1643734007394,0.40027851,2789.4,2788.7,2.0925297]
[1643734007833,0.40027851,2789.4,2788.7,3.0925297]
[1643734008833,1.51107915,2789.3,2788.7,3.0925297]
[1643734009036,0.40027851,2789.4,2788.7,3.0925297]
[1643734009234,0.40027851,2789.4,2788.7,9.4150837]
[1643734009736,0.40027851,2789.4,2788.8,0.00879088]
[1643734009935,0.40027851,2789.4,2788.7,9.5942837]
[1643734010736,1.51112814,2789.3,2788.7,8.2942837]
[1643734010940,1.51112814,2789.3,2788.7,8.1150837]
[1643734011141,0.40027851,2789.4,2788.7,8.1150837]
[1643734011343,1.51113049,2789.3,2788.7,8.1150837]
[1643734011586,0.40027851,2789.4,2788.7,8.2942837]
[1643734011788,0.1792,2789.7,2789.1,0.80293135]
[1643734011990,0.26119997,2790.0,2789.1,1.11465163]
[1643734011991,0.1792,2789.8,2789.1,1.11465163]
[1643734012288,1.5108928,2789.7,2789.1,2.89521655]
[1643734012487,0.1792,2789.9,2789.1,2.90199608]
[1643734012789,1.84801014,2789.8,2789.2,1.0]
[1643734012989,0.33717249,2789.8,2789.2,1.0]
[1643734013189,0.33717249,2789.8,2789.2,1.89615]
[1643734013890,1.51087451,2789.7,2789.2,1.89615]
[1643734014588,0.33717249,2789.8,2789.2,1.89615]
[1643734014789,0.1792,2789.9,2789.2,1.89615]
[1643734015088,0.1792,2789.9,2789.1,1.7922852]
[1643734015089,1.51090656,2789.8,2789.1,1.7922852]
[1643734015734,1.51090656,2789.8,2789.1,3.55297657]
[1643734016136,1.86527595,2789.8,2789.2,1.0]
[1643734016336,0.35436939,2789.8,2789.2,1.0]
[1643734017942,0.35436939,2789.8,2789.2,1.00706164]
[1643734018340,0.35436939,2789.8,2789.2,1.0]
[1643734019398,0.35436939,2789.8,2789.2,1.3]
[1643734019799,0.35436939,2789.8,2788.9,0.1792]
[1643734019800,1.51095229,2789.7,2788.9,0.1792]
[1643734019997,1.69015229,2789.7,2788.7,6.501754]
[1643734020197,1.51095229,2789.6,2788.7,6.322554]
[1643734020397,0.1792,2789.5,2788.7,6.322554]
[1643734020596,0.43678337,2789.1,2788.7,6.322554]
[1643734021598,1.69054413,2789.0,2788.7,4.71045359]
[1643734021799,0.1792,2789.0,2788.7,4.71045359]
[1643734022002,1.51134816,2788.9,2788.7,4.71045359]
[1643734022200,4.4792,2788.8,2788.7,4.71045359]
[1643734022598,0.1792,2789.0,2788.7,4.71045359]
[1643734025242,2.41806656,2789.8,2789.2,0.75059996]
[1643734025243,0.1792,2789.4,2789.2,0.75059996]
[1643734025445,0.26119997,2790.0,2789.2,0.75059996]
[1643734025446,0.1792,2789.7,2789.2,0.75059996]
[1643734025642,1.51101679,2789.6,2788.8,10.3514]
[1643734025843,1.51101679,2789.8,2788.8,0.1792]
[1643734026042,0.26119997,2790.0,2788.8,0.1792]
[1643734026043,0.39285573,2789.4,2788.8,0.1792]
[1643734026704,0.39285573,2789.4,2789.1,0.8962299]
[1643734027003,0.39285573,2789.4,2788.8,1.0755]
[1643734027206,1.51110464,2789.3,2788.7,4.88965359]
[1643734027403,1.51110464,2789.3,2788.7,4.71045359]
[1643734028207,1.51110464,2789.3,2788.8,0.79459387]
[1643734028708,1.51110464,2789.2,2788.7,5.60681359]
[1643734028908,2.470229,2789.9,2788.7,5.60681359]
[1643734028909,1.51110464,2789.8,2788.7,5.60681359]
[1643734029110,1.69034352,2789.7,2788.7,5.60681359]
[1643734029308,1.51114352,2789.6,2788.7,8.28126491]
[1643734029508,0.1792,2789.5,2788.8,0.8963217]
[1643734029711,1.61877739,2789.9,2788.8,0.8963217]
[1643734029712,1.51114352,2789.4,2788.8,0.8963217]
[1643734029910,0.40994616,2789.3,2788.8,0.8963217]
[1643734030109,0.40994616,2789.3,2788.7,5.60681359]
[1643734030344,0.40994616,2789.3,2788.7,5.90681359]
[1643734030648,1.5111316,2789.2,2788.7,5.01045359]
[1643734031245,1.5111316,2789.2,2788.7,4.70717855]
[1643734032251,1.51825991,2789.2,2788.7,4.70717855]
[1643734032448,0.90648802,2788.9,2788.7,4.70717855]
[1643734032646,8.2111316,2788.8,2788.7,4.70717855]
[1643734032845,8.3903316,2788.8,2788.7,4.70717855]
[1643734033048,8.8203316,2788.8,2788.7,4.70717855]
[1643734033445,2.50014401,2788.8,2788.7,4.70717855]
[1643734033647,5.65014401,2788.8,2788.7,4.70717855]
[1643734033846,5.95014401,2788.8,2788.7,4.70717855]
[1643734034290,2.80014401,2788.8,2788.7,4.70717855]
[1643734034494,2.62094401,2788.8,2788.7,4.70717855]
[1643734034901,2.32094401,2788.8,2788.7,4.70717855]
[1643734035497,1.89094401,2788.8,2788.7,4.70717855]
[1643734037501,4.59094401,2788.8,2788.7,4.70717855]
[1643734037944,4.59094401,2788.8,2788.7,4.16572644]
[1643734037945,8.89094401,2788.8,2788.7,4.16572644]
[1643734038144,9.19094401,2788.8,2788.7,4.16572644]
[1643734038344,9.19094401,2788.8,2788.7,4.01178348]
[1643734039146,9.62094401,2788.8,2788.7,4.01178348]
[1643734039347,2.32094401,2788.8,2788.7,4.01178348]
[1643734039550,1.9411316,2788.8,2788.7,4.01178348]
[1643734039751,1.5111316,2788.8,2788.7,4.01178348]
[1643734039948,1.07581,2789.1,2788.7,4.01178348]
[1643734039949,1.5111316,2789.0,2788.7,4.01178348]
[1643734041254,0.37517281,2788.9,2788.7,4.01178348]
[1643734041454,1.5111316,2788.8,2788.7,4.01178348]
[1643734041696,1.5111316,2788.8,2788.7,2.39967697]
[1643734043203,2.41844223,2789.6,2788.8,21.08]
[1643734043401,1.51091966,2789.5,2788.8,0.01464014]
[1643734043600,1.51091966,2789.5,2788.9,1.0]
[1643734043801,1.51091966,2789.5,2788.8,1.17908]
[1643734044100,1.51091966,2789.5,2788.8,1.89632]
[1643734044304,1.51091966,2789.5,2788.8,2.0754]
[1643734044501,1.51091966,2789.5,2788.8,4.7640439]
[1643734044904,1.51091966,2789.5,2789.0,1.79237]
[1643734045104,1.51091966,2789.4,2789.0,1.79237]
[1643734045348,1.56847161,2790.1,2789.0,1.79237]
[1643734045543,1.51087879,2790.0,2789.4,0.89616]
[1643734045946,1.51087879,2790.0,2789.4,1.62901596]
[1643734046144,1.51087879,2789.9,2789.5,2.91736828]
[1643734046345,1.51087879,2789.8,2789.6,0.1792]
[1643734046546,1.56839161,2790.4,2789.6,0.1792]
[1643734046547,1.51087879,2789.7,2789.6,0.1792]
[1643734046752,1.51087879,2789.7,2789.5,0.1792]
[1643734046948,1.56839161,2790.4,2789.5,0.1792]
[1643734047150,1.51078314,2790.3,2789.7,0.89606]
[1643734047452,0.42029921,2789.9,2789.7,0.89606]
[1643734047648,1.51078314,2789.8,2789.7,0.89606]
[1643734048049,0.67225161,2790.4,2789.7,0.89606]
[1643734048249,0.85145161,2790.4,2789.7,0.89606]
[1643734048450,1.51078314,2790.3,2789.7,0.89606]
[1643734048852,1.51078314,2790.2,2789.7,0.89606]
[1643734049092,1.51078314,2790.1,2789.7,0.89606]
[1643734049297,1.51078314,2790.0,2789.7,0.89606]
[1643734049493,0.85145161,2790.5,2789.7,0.89606]
[1643734049494,1.51078314,2789.9,2789.7,0.89606]
[1643734049694,1.51078314,2789.8,2789.7,0.89606]
[1643734050097,1.51078314,2790.4,2789.7,0.89606]
[1643734050297,0.34876306,2790.1,2789.7,0.89606]
[1643734050504,1.51078314,2790.0,2789.7,0.89606]
[1643734051303,0.67225161,2790.5,2789.8,2.73135357]
[1643734051304,0.1792,2790.5,2789.8,2.73135357]
[1643734051505,0.01279443,2791.0,2790.0,21.97597]
[1643734051506,1.51049045,2790.4,2790.0,21.97597]
[1643734051703,2.26721005,2791.1,2790.1,2.75129183]
[1643734051704,1.51049045,2790.5,2790.1,2.75129183]
[1643734051902,0.143479,2791.2,2790.1,1.37337997]
[1643734051903,0.1791,2791.0,2790.1,1.37337997]
[1643734052200,0.1791,2791.0,2790.5,0.72399339]
[1643734052201,1.84390669,2790.9,2790.5,0.72399339]
[1643734052402,1.51031376,2790.8,2790.6,0.89571]
[1643734052836,0.322579,2791.2,2790.6,0.89571]
[1643734053143,0.322579,2791.2,2790.6,1.89571]
[1643734053144,1.51025906,2791.1,2790.6,1.89571]
[1643734053538,0.143479,2791.2,2790.6,1.89571]
[1643734053742,0.50502197,2791.2,2790.6,1.89571]
[1643734053944,0.50502197,2791.2,2790.6,4.72707355]
[1643734054139,0.50502197,2791.2,2790.6,5.62277055]
[1643734054340,1.51020658,2791.1,2790.6,4.62277055]
[1643734054639,1.51020658,2791.1,2790.5,1.79141]
[1643734054939,1.51020658,2791.1,2790.3,1.1791]
[1643734055139,0.1791,2791.0,2790.3,0.1791]
[1643734055344,0.35938395,2790.4,2790.3,1.0]
[1643734055541,0.35938395,2790.4,2790.2,3.582994]
[1643734055744,0.35938395,2790.4,2790.3,1.0]
[1643734056906,0.143479,2791.2,2790.3,5.11099186]
[1643734057103,0.143479,2791.2,2790.8,0.6696128]
[1643734057306,0.143479,2791.2,2790.8,2.7607928]
[1643734057706,0.143479,2791.2,2790.9,1.0]
[1643734057904,3.07899935,2791.0,2790.9,1.0]
[1643734058102,2.7,2791.0,2790.9,1.0]
[1643734058304,2.7,2791.0,2790.9,0.89559]
[1643734058702,2.7,2791.0,2790.9,1.0]
[1643734058905,2.7,2791.0,2790.8,1.79118]
[1643734059311,1.0987474,2791.3,2790.8,0.89573]
[1643734059509,1.0987474,2791.3,2790.9,0.01298229]
[1643734059709,1.0987474,2791.3,2791.0,1.79091]
[1643734060010,1.0987474,2791.3,2791.0,2.09091]
[1643734060212,1.0987474,2791.3,2791.0,2.39091]
[1643734060446,1.0987474,2791.3,2791.1,0.78598921]
[1643734060646,1.0987474,2791.3,2791.1,21.8597689]
[1643734060854,1.0987474,2791.3,2791.1,22.8597689]
[1643734061048,1.09701253,2791.3,2791.1,1.7797689]
[1643734061446,1.09701253,2791.3,2791.1,22.8597689]
[1643734062650,1.09701253,2791.3,2791.1,1.7797689]
[1643734064083,1.09701253,2791.3,2791.1,1.78644218]
[1643734064284,1.09701253,2791.3,2791.2,23.83739053]
[1643734064493,1.09701253,2791.3,2791.2,24.73284053]
[1643734064687,1.09701253,2791.3,2791.2,2.19545]
[1643734064885,1.09701253,2791.3,2791.2,23.27545]
[1643734065288,1.09701253,2791.3,2791.2,2.19545]
[1643734065785,1.09701253,2791.3,2791.2,1.89545]
[1643734066289,1.09701253,2791.3,2791.2,0.89545]
[1643734066487,1.09701253,2791.3,2791.2,1.89545]
[1643734066890,1.09701253,2791.3,2791.2,0.89545]
[1643734067091,1.09701253,2791.3,2791.2,3.39545]
[1643734069359,1.04701253,2791.3,2791.2,3.39545]
[1643734070062,1.04701253,2791.3,2791.2,1.5]
[1643734070262,6.55,2791.2,2791.1,0.06844945]
[1643734070861,1.04701253,2791.3,2791.1,0.06844945]
[1643734071063,1.04701253,2791.3,2790.7,2.72250678]
[1643734071263,1.04701253,2791.3,2790.8,1.0]
[1643734071695,1.04701253,2791.3,2790.5,1.79138]
[1643734071897,0.1791,2791.2,2790.5,1.79138]
[1643734072695,0.380675,2791.1,2790.5,1.80187232]
[1643734072994,0.380675,2791.1,2790.5,2.53862832]
[1643734073194,0.380675,2791.1,2790.5,2.528136]
[1643734073395,0.380675,2791.1,2790.5,4.3194709]
[1643734073596,1.04701253,2791.3,2790.6,1.0]
[1643734073995,1.04701253,2791.3,2790.6,0.9511045]
[1643734074695,1.39947163,2791.3,2790.7,0.1791]
[1643734074896,1.39947163,2791.3,2790.7,1.07478]
[1643734076441,1.39947163,2791.3,2790.7,1.08196642]
[1643734076644,1.39947163,2791.3,2790.7,1.07478]
[1643734077044,1.39947163,2791.3,2790.7,0.89568]
[1643734078344,1.39947163,2791.3,2790.7,0.91601845]
[1643734078345,1.04701253,2791.3,2790.7,0.91601845]
[1643734079184,1.04701253,2791.3,2790.7,0.89568]
[1643734079385,0.32062272,2791.1,2790.7,0.89568]
[1643734079788,1.04701253,2791.3,2790.7,0.89568]
[1643734081393,1.04701253,2791.3,2791.2,0.74797057]
[1643734083440,1.04701253,2791.3,2791.0,0.89562]
[1643734083642,0.1791,2792.1,2791.1,24.08]
[1643734083842,0.1791,2792.1,2791.5,1.5]
[1643734084045,0.04263176,2792.0,2791.5,1.5]
[1643734084343,0.04206334,2791.9,2791.5,1.5]
[1643734084750,0.354667,2791.7,2791.5,1.5]
[1643734085142,0.04035807,2791.6,2791.5,1.5]
[1643734085943,3.59035807,2791.6,2791.5,1.5]
[1643734087226,0.04035807,2791.6,2791.5,1.5]
[1643734092046,2.89035807,2791.6,2791.5,1.5]
[1643734092246,2.89035807,2791.6,2791.1,0.1791]
[1643734092247,4.7,2791.5,2791.1,0.1791]
[1643734092447,4.7,2791.5,2790.8,1.97028]
[1643734092851,0.04035807,2791.6,2790.8,1.97028]
[1643734093045,1.5099203,2791.5,2790.8,1.79118]
[1643734093245,0.36212561,2791.4,2791.0,0.7149661]
[1643734093649,0.36212561,2791.4,2790.8,1.79118]
[1643734094592,0.36212561,2791.4,2790.8,2.49679572]
[1643734094789,0.04035807,2791.6,2790.8,6.21076239]
[1643734094991,1.50986499,2791.5,2790.8,4.39238312]
[1643734095193,1.50986499,2791.5,2790.8,4.40492628]
[1643734095391,1.50986499,2791.5,2790.8,4.39238312]
[1643734096393,1.50986499,2791.5,2791.0,0.89558]
[1643734096796,0.04035807,2791.6,2791.1,3.5]
[1643734097000,0.04035807,2791.6,2791.2,2.8282477]
[1643734097201,0.04035807,2791.6,2791.2,23.91516758]
[1643734097400,0.04035807,2791.6,2791.3,1.0]
[1643734097602,0.04035807,2791.6,2791.3,1.89551]
[1643734097837,0.04035807,2791.6,2791.3,0.89551]
[1643734098038,0.04035807,2791.6,2791.4,1.1448256]
[1643734098941,0.04035807,2791.6,2791.4,0.80488409]
[1643734099342,0.57482726,2792.3,2791.4,0.80488409]
[1643734099343,0.1791,2792.3,2791.5,9.39323109]
[1643734099544,0.1293,2792.7,2791.6,6.48715916]
[1643734099752,0.1293,2792.7,2791.7,24.15740842]
[1643734099945,0.1293,2793.2,2791.8,0.17908]
[1643734100144,0.80155161,2793.5,2792.1,15.90222663]
[1643734100344,0.36109403,2793.1,2792.9,0.73612873]
[1643734100546,0.1293,2793.5,2793.0,0.89495]
[1643734101348,6.2678,2793.9,2793.0,0.89495]
[1643734101349,2.2636079,2794.2,2793.1,7.19030842]
[1643734101614,2.89479325,2794.6,2793.6,0.01208019]
[1643734101615,1.0987474,2794.6,2793.6,0.01208019]
[1643734101805,1.0987474,2794.6,2794.2,0.01227857]
[1643734102011,0.1789,2794.9,2794.2,0.01227857]
[1643734102012,0.1789,2794.9,2794.4,3.0]
[1643734102205,0.1789,2795.2,2794.4,3.5244433]
[1643734102407,0.1789,2795.2,2794.5,1.17908]
[1643734102607,0.1789,2795.2,2794.6,0.53119997]
[1643734102806,0.01,2795.3,2794.8,21.08]
[1643734103008,0.01,2795.3,2794.9,1.45714948]
[1643734103203,0.01,2795.3,2795.0,21.08]
[1643734103407,5.01,2795.7,2795.5,0.83324719]
[1643734103408,0.01,2795.6,2795.5,0.83324719]
[1643734103606,5.02,2795.7,2795.4,0.516]
[1643734103808,5.02,2795.7,2795.2,0.1787]
[1643734103809,0.40876168,2795.3,2795.2,0.1787]
[1643734104005,0.01,2795.6,2795.2,0.1787]
[1643734104606,0.04458226,2796.4,2795.3,0.77096504]
[1643734104807,0.04458226,2796.4,2795.4,0.8941]
[1643734105009,0.04458226,2796.4,2795.4,1.0728]
[1643734105010,0.1788,2796.3,2795.4,1.0728]
[1643734105206,0.1788,2796.3,2795.8,0.70224976]
[1643734105207,0.54785233,2796.3,2795.8,0.70224976]
[1643734105452,0.1788,2796.3,2795.8,0.70224976]
[1643734106657,0.1788,2796.3,2795.5,1.0]
[1643734106859,0.1788,2796.3,2795.2,0.1787]
[1643734107659,0.1788,2796.3,2795.4,0.85135817]
[1643734108061,0.1788,2796.3,2795.4,1.03005817]
[1643734108357,0.1788,2796.3,2795.4,0.85135817]
[1643734109392,0.1888,2796.3,2795.4,0.85135817]
[1643734109692,0.1888,2796.3,2795.5,2.79455206]
[1643734109892,0.1788,2796.3,2795.6,0.01277055]
[1643734110091,0.03458226,2796.4,2795.6,1.01277055]
[1643734110294,0.03458226,2796.4,2795.6,0.01277055]
[1643734110492,0.03458226,2796.4,2795.5,1.0]
[1643734110694,0.03458226,2796.4,2795.4,1.33043817]
[1643734110891,0.1787,2796.5,2795.4,1.33043817]
[1643734111091,0.1787,2796.5,2795.5,0.1787]
[1643734111316,0.1787,2796.5,2795.5,1.1787]
[1643734111500,0.42654084,2796.3,2795.5,1.1787]
[1643734111697,0.42654084,2796.3,2795.5,0.1787]
[1643734111897,0.42654084,2796.3,2795.5,1.1787]
[1643734112197,0.42654084,2796.3,2795.5,0.1787]
[1643734112497,5.81,2796.2,2795.7,0.7689636]
[1643734112699,0.01,2796.1,2795.7,0.7689636]
[1643734113842,0.01,2796.1,2795.3,0.1788]
[1643734114041,0.01,2796.1,2795.2,0.1787]
[1643734114642,0.43672196,2795.8,2795.4,0.89422144]
[1643734114843,0.43672196,2795.8,2795.2,0.1787]
[1643734116143,0.1787,2795.7,2795.2,0.1787]
[1643734117399,0.43672196,2795.8,2794.3,8.0318837]
[1643734117400,1.91548195,2795.8,2794.7,0.1787]
[1643734117597,1.91548195,2795.8,2794.3,0.8944332]
[1643734117598,0.516,2795.6,2794.3,0.1787]
[1643734117798,0.516,2795.6,2794.2,0.1787]
[1643734117799,0.6947,2795.5,2794.2,0.1787]
[1643734117999,0.1887,2795.5,2794.1,0.17874]
[1643734118200,0.1789,2795.7,2794.2,0.1789]
[1643734118399,0.32333984,2795.1,2794.2,3.18276374]
[1643734118600,0.32333984,2795.1,2794.2,0.1789]
[1643734118998,0.32333984,2795.1,2794.0,1.35764]
[1643734119398,0.32333984,2795.1,2794.3,0.94472076]
[1643734120342,0.32333984,2795.1,2794.2,0.1789]
[1643734120746,0.01,2795.6,2794.1,0.1789]
[1643734120747,0.1789,2795.5,2794.1,0.1789]
[1643734120943,0.1789,2795.5,2794.0,1.1789]
[1643734120944,0.6949,2795.5,2794.0,1.1789]
[1643734121142,0.6949,2795.5,2794.0,0.1789]
[1643734121341,0.6949,2795.5,2794.0,2.99022981]
[1643734121342,1.0049,2795.5,2794.0,2.99022981]
[1643734121649,0.01,2795.4,2794.4,0.71752466]
[1643734121845,0.39471947,2795.0,2794.4,0.71752466]
[1643734123047,0.1787,2795.3,2794.2,3.09774541]
[1643734123253,0.69476,2795.2,2794.2,0.1787]
[1643734123451,0.99999999,2794.9,2793.9,0.01519997]
[1643734123650,1.69489999,2794.8,2793.4,0.1789]
[1643734123952,0.516,2794.7,2793.2,0.1789]
[1643734124196,0.36206993,2794.6,2793.5,0.80029228]
[1643734124396,0.516,2794.5,2793.5,0.80029228]
[1643734124597,0.1789,2794.4,2793.5,0.80029228]
[1643734124798,0.1789,2794.4,2793.2,0.1789]
[1643734125196,0.41069785,2794.1,2793.2,0.1789]
[1643734125907,0.1789,2794.4,2793.2,0.1789]
[1643734126105,0.1789,2794.4,2793.2,1.07371]
[1643734126307,0.516,2794.9,2793.2,1.07371]
[1643734126308,0.1789,2794.7,2793.3,0.17874]
[1643734126503,0.1789,2795.2,2793.4,2.48416]
[1643734126708,0.1789,2795.2,2793.5,0.17874]
[1643734126904,0.1789,2795.2,2794.5,0.93893417]
[1643734126905,0.39261644,2795.1,2794.5,0.93893417]
[1643734127205,0.1789,2795.0,2794.5,0.93893417]
[1643734127403,0.01,2795.3,2793.8,7.9256]
[1643734127404,0.25,2794.9,2793.8,7.9256]
[1643734127854,0.25,2794.9,2793.9,1.0]
[1643734128059,0.25,2794.9,2794.0,0.1789]
[1643734128259,0.25,2794.9,2794.1,1.22734019]
[1643734128562,0.25,2794.9,2794.2,0.19140838]
[1643734128759,0.25,2794.9,2794.2,0.1789]
[1643734130762,0.40479965,2794.6,2794.2,0.1789]
[1643734131807,0.25,2794.9,2794.2,0.1789]
[1643734132409,0.25,2794.9,2793.9,0.1789]
[1643734132607,0.25,2794.9,2793.9,0.4789]
[1643734133407,0.25,2794.9,2793.9,1.4789]
[1643734133609,0.36513216,2794.5,2794.0,0.95181386]
[1643734134207,0.36513216,2794.5,2793.9,7.322554]
[1643734134407,0.36513216,2794.5,2793.9,6.32991242]
[1643734134608,0.36513216,2794.5,2793.9,6.322554]
[1643734135563,0.1789,2794.8,2793.9,6.322554]
[1643734136963,0.36305177,2794.4,2793.9,6.322554]
[1643734137163,0.61305177,2794.4,2793.9,6.322554]
[1643734137763,0.25,2794.4,2793.9,6.322554]
[1643734138566,0.1789,2794.3,2793.9,6.322554]
[1643734138766,0.3790387,2794.2,2793.9,6.322554]
[1643734139596,0.3790387,2794.2,2793.9,12.645108]
[1643734140496,0.25,2794.4,2793.9,12.645108]
[1643734141296,0.25,2794.4,2793.9,18.967662]
[1643734141503,0.1789,2794.8,2794.3,0.78902348]
[1643734141697,0.1789,2794.8,2794.0,3.67192006]
[1643734141698,0.3636137,2794.8,2794.1,0.00670021]
[1643734141898,0.3636137,2794.8,2794.0,0.1789]
[1643734142698,0.37767824,2794.1,2794.0,0.1789]
[1643734142946,2.95459758,2795.1,2793.9,18.967662]
[1643734143150,0.25,2794.7,2793.9,18.967662]
[1643734143750,0.25,2794.7,2793.9,25.290216]
[1643734143953,0.42020791,2794.3,2793.9,25.290216]
[1643734144551,0.25,2794.7,2793.9,25.290216]
[1643734145352,0.25,2794.7,2794.0,1.0]
[1643734145552,0.25,2794.7,2794.2,0.44337105]
[1643734145753,0.25,2794.7,2794.5,0.90719254]
[1643734146051,0.25,2794.7,2794.2,0.44337105]
[1643734146052,0.25,2794.7,2794.2,0.17874]
[1643734146904,0.25,2794.7,2794.5,0.74845929]
[1643734147101,0.1789,2795.2,2794.7,0.89439]
[1643734147305,5.01,2795.5,2794.8,0.18857015]
[1643734147306,0.01,2795.4,2794.8,0.18857015]
[1643734147501,0.01,2795.4,2794.8,0.70457015]
[1643734147906,5.0,2795.5,2795.2,0.01228794]
[1643734147907,0.30039931,2795.5,2795.2,0.01228794]
[1643734148100,0.66265954,2796.3,2795.5,3.35]
[1643734148101,0.01,2796.3,2795.5,3.35]
[1643734148300,1.50736263,2796.2,2795.6,1.1787]
[1643734148501,0.66265954,2796.8,2795.8,0.01212322]
[1643734148702,0.90011552,2797.5,2796.1,1.0]
[1643734148902,1.06693,2797.5,2796.5,0.01285448]
[1643734149101,1.06693,2797.5,2797.1,0.74766208]
[1643734149305,1.06693,2797.5,2797.1,1.59121238]
[1643734149703,1.01693,2797.5,2797.1,1.59121238]
[1643734150003,1.0987474,2797.8,2797.2,0.89355]
[1643734150202,1.0987474,2797.8,2797.1,1.59121238]
[1643734150203,1.0987474,2797.8,2797.1,0.87745118]
[1643734150451,1.0987474,2797.8,2797.1,0.74766208]
[1643734150651,1.02534961,2797.8,2797.6,0.70016203]
[1643734150856,1.02534961,2797.8,2797.6,1.59359203]
[1643734151053,1.02534961,2797.8,2797.2,0.1787]
[1643734151255,1.02534961,2797.8,2796.9,0.1787]
[1643734151453,1.02534961,2797.8,2796.7,1.35744]
[1643734151667,1.02534961,2797.8,2796.5,0.1787]
[1643734151668,0.40988231,2797.3,2796.5,0.1787]
[1643734151860,0.40988231,2797.3,2796.2,0.1787]
[1643734151861,0.99999999,2797.1,2796.2,0.1787]
[1643734152057,0.516,2797.0,2796.2,0.1787]
[1643734152258,0.1787,2796.9,2796.1,0.82420651]
[1643734152456,0.1787,2797.1,2796.1,0.82420651]
[1643734152661,0.1787,2797.2,2796.1,0.82420651]
[1643734152858,0.1787,2797.2,2795.8,0.1787]
[1643734153060,0.89412,2797.0,2795.6,0.1787]
[1643734153260,0.1787,2796.9,2795.6,0.1787]
[1643734153661,0.36798562,2796.2,2795.6,0.1787]
[1643734153860,0.516,2796.6,2795.6,0.92074032]
[1643734154101,0.6947,2796.6,2795.6,0.92074032]
[1643734154303,0.516,2796.6,2795.6,0.92074032]
[1643734154506,0.516,2796.6,2795.5,0.1787]
[1643734154904,0.1787,2796.5,2795.5,0.1787]
[1643734155106,0.35746,2796.5,2795.5,0.1787]
[1643734155307,0.1787,2796.5,2795.5,0.1787]
[1643734155505,0.40915672,2795.9,2795.5,0.1787]
[1643734155706,0.35746,2796.5,2795.5,0.1787]
[1643734155707,0.1787,2796.5,2795.5,0.1787]
[1643734156106,0.17876,2796.4,2795.5,0.1787]
[1643734156306,6.7,2796.2,2794.7,0.48637997]
[1643734156507,0.1787,2796.1,2794.7,0.48637997]
[1643734156707,0.1787,2796.1,2794.8,0.1788]
[1643734157210,0.44668749,2795.7,2794.8,0.1788]
[1643734157855,0.44668749,2795.7,2794.6,0.1787]
[1643734158046,0.17876,2796.0,2794.6,0.1787]
[1643734158247,0.1787,2796.2,2794.8,0.8942658]
[1643734158446,0.3,2796.5,2794.8,0.8942658]
[1643734158447,0.1787,2796.4,2795.0,0.00621318]
[1643734158647,0.1787,2796.5,2795.1,0.1787]
[1643734158849,0.1787,2796.5,2795.1,3.08741835]
[1643734159052,0.1787,2796.5,2795.4,0.44379509]
[1643734159254,0.1787,2796.5,2795.5,0.72030451]
[1643734159255,0.90776,2796.4,2795.5,0.72030451]
[1643734159453,0.1787,2796.3,2795.1,0.1787]
[1643734159858,2.92526339,2796.7,2795.1,0.1787]
[1643734159859,2.372384,2797.8,2796.2,0.01265341]
[1643734160054,0.99999999,2797.2,2796.2,0.00922053]
[1643734160254,0.35710222,2795.6,2795.5,0.1787]
[1643734160554,1.38233236,2796.7,2795.5,0.1787]
[1643734160555,0.429,2796.4,2795.5,0.1787]
[1643734160752,0.429,2796.4,2795.3,0.1787]
[1643734160956,0.429,2796.4,2795.1,0.1787]
[1643734160957,0.91913421,2796.0,2795.1,0.1787]
[1643734161162,0.99999999,2795.5,2795.0,0.1787]
[1643734161453,0.99999999,2795.5,2793.7,3.76660198]
[1643734161454,0.429,2795.4,2794.5,0.1787]
[1643734161704,0.429,2795.4,2793.9,0.1789]